Cogmind - Beta 11.1 @@@ ROGUE MODE // 2022.09.23 @ 22:32:38 Player: DuckBoy Result: Destroyed by C-17 Slicer with Blade Saw Performance ------------- Evolutions (2) 1000 Regions Visited (6) 1200 Robots Destroyed (54) 270 Value Destroyed (1530) 1530 Prototype IDs (5) 100 Alien Tech Used (0) 0 Bonus (485) 485 TOTAL SCORE: 4585 Bonus ------- High Alert Combat Kills 17 Entered Garrisons 200 Aligned with FarCom 300 Friendly Fire -32 Cogmind --------- Core Integrity 0/550 Matter 178/300 Energy 34/100 System Corruption 15% Temperature Cool (0) Movement Rolling (130) Ox2 Location -8/Garrison Parts ------- > --- POWER (1) -------- (None) > --- PROPULSION (2) --- Compact Wheel > --- UTILITY (6) ------ High-capacity Storage Unit > --- WEAPON (2) ------- Maul > --- INVENTORY (20) --- Wheel Hover Unit Improved Hover Unit Aerolev Unit Aerolev Unit Aerolev Unit Aerolev Unit Aerolev Unit Peak State ------------ > --- POWER ------------ Deuterium Engine > --- PROPULSION ------- Advanced Treads Compact Wheel > --- UTILITY ---------- High-capacity Storage Unit Sensor Array Experimental Sensor Array > --- WEAPON ----------- AWS/Thermal > --- INVENTORY -------- Light Deuterium Engine Improved Treads Improved Treads Improved Treads Improved Treads Improved Treads Improved Treads Wheel Compact Wheel Hover Unit Improved Hover Unit Light Armor Plating Light Armor Plating Light EM Pulse Cannon Heavy Assault Rifle Heavy Assault Rifle Heavy Assault Rifle Heavy Assault Rifle Slug Cannon Grenade Launcher [Rating: 37] Favorites ----------- Power Ion Engine Engine Ion Engine Propulsion Light Treads Treads Light Treads Wheel Compact Wheel Hover Unit Aerolev Unit Utility High-capacity Storage Unit Device Sensor Array Storage High-capacity Storage Unit Protection Light Armor Plating Weapon Light EM Pulse Cannon Energy Gun AWS/Thermal Energy Cannon Light EM Pulse Cannon Ballistic Gun Heavy Assault Rifle Ballistic Cannon Slug Cannon Launcher Grenade Launcher Impact Weapon Maul Build | -11 -10 -10 -10 -9 -8 -8 ------- Run | Scr Mat Min Exi Min Mat Gar Slots Evolved 4 | . . . . . 4 . Power . | . . . . . . . Propulsion . | . . . . . . . Utility 4 | . . . . . 4 . Weapon . | . . . . . . . Parts Attached 61 | 5 15 3 5 . 28 5 Power 5 | 1 2 . . . 2 . Engine 5 | 1 2 . . . 2 . Core . | . . . . . . . Reactor . | . . . . . . . Propulsion 20 | 2 4 2 . . 10 2 Treads 15 | 2 3 . . . 9 1 Leg . | . . . . . . . Wheel 4 | . 1 2 . . . 1 Hover 1 | . . . . . 1 . Flight . | . . . . . . . Utility 11 | . 4 . 2 . 5 . Device 5 | . 2 . 2 . 1 . Storage 2 | . 2 . . . . . Processor . | . . . . . . . Hackware . | . . . . . . . Protection 4 | . . . . . 4 . Artifact . | . . . . . . . Weapon 25 | 2 5 1 3 . 11 3 Energy Gun 2 | . . . 2 . . . Energy Cannon 6 | . 4 . 1 . 1 . Ballistic Gun 8 | 2 . . . . 6 . Ballistic Cannon 3 | . . . . . 3 . Launcher 3 | . 1 1 . . 1 . Special Weapon . | . . . . . . . Impact Weapon 3 | . . . . . . 3 Slashing Weapon . | . . . . . . . Piercing Weapon . | . . . . . . . Special Melee Weapon . | . . . . . . . Unidentified Prototypes 5 | . . . 3 . 2 . Parts Lost 25 | . 2 . . . 20 3 Power 2 | . . . . . 2 . Propulsion 8 | . . . . . 6 2 Utility 7 | . 1 . . . 6 . Weapon 8 | . 1 . . . 6 1 Highest Loss Streak 10 | . 2 . . . 10 3 To Critical Strikes 2 | . . . . . 2 . Average Slot Usage (%) 85 | . 96 100 94 85 69 36 Engine 11 | . 14 14 14 14 7 . Treads 18 | . 25 26 14 14 14 14 Wheel 5 | . 2 1 14 14 3 . Device 12 | . 11 14 13 14 14 . Storage 12 | . 13 14 14 14 9 9 Protection 2 | . . . . . 9 . Energy Gun 3 | . . . 4 14 2 . Energy Cannon 8 | . 21 14 9 . . . Ballistic Gun 3 | . 4 . . . 7 . Launcher 4 | . 2 14 9 . . . Naked Turns . | . . . . . . . Heaviest Build 69 | 5 54 53 54 54 69 50 Greatest Support 46 | 40 40 40 16 16 46 43 Greatest Overweight (x) 3 | . 1 3 3 3 3 1 Average Overweight (x) 1 | . . 1 2 3 2 1 Largest Inventory Capacity 20 | 5 20 20 20 20 20 20 Average Capacity 18 | 5 16 20 20 20 20 20 Most Carried 20 | 2 20 20 20 20 20 11 Average Carried 16 | 1 11 19 19 19 17 10 Final Capacity 20 | 5 20 20 20 20 20 20 Final Carried 20 | 2 20 20 18 20 11 8 Class Distribution -------------------- 53% | Mutant 29% | Skirmisher 16% | Scavenger-Mutant Dominant Class ---------------- Mutant | -10/Materials Scavenger-Mutant | -10/Mines Mutant | -10/Exiles Skirmisher | -9/Mines Skirmisher | -8/Materials Mutant | -8/Garrison Resources | -11 -10 -10 -10 -9 -8 -8 ----------- Run | Scr Mat Min Exi Min Mat Gar Matter Collected 1097 | 177 261 40 . 70 527 22 Remotely . | . . . . . . . Salvage Created 1618 | . 350 71 . 176 979 42 Parts 97 | . 23 7 . 6 56 5 Haulers Intercepted 2 | . 1 . . . 1 . Recyclers Shooed . | . . . . . . . Parts Field Recycled . | . . . . . . . Retrieved Matter . | . . . . . . . Parts Self-Destructed . | . . . . . . . Prevented . | . . . . . . . Kills | -11 -10 -10 -10 -9 -8 -8 ------- Run | Scr Mat Min Exi Min Mat Gar Combat Hostiles Destroyed 49 | . 7 5 . 8 27 2 Melee 5 | . . . . . 3 2 Guns 20 | . . . . 8 12 . Cannons 7 | . 4 1 . . 2 . AOE 16 | . 2 4 . . 10 . Classes Destroyed 13 | . 5 . . 2 5 1 Worker 2 | . 1 . . . 1 . Builder 1 | . . . . . 1 . Hauler 2 | . 1 . . . 1 . Operator 1 | . . . . . 1 . Watcher 5 | . 3 . . . 2 . Swarmer 16 | . 3 3 . . 10 . Cutter 2 | . . . . . . 2 Grunt 15 | . 4 2 . 1 8 . Brawler 1 | . . . . 1 . . Sentry 5 | . . . . . 5 . Specialist 1 | . . . . . 1 . Hunter 3 | . . . . . 3 . Assembled 6 | . . . . 6 . . Best Kill Streak 7 | . 3 3 . 6 7 2 Combat Bots Only 6 | . 3 3 . 6 6 2 Max Kills in Single Turn 4 | . 1 3 . 1 4 1 Gunslinging . | . . . . . . . Exploded 4 | . 1 3 . . 4 . Melee 1 | . . . . . 1 1 Uniques/NPCs Destroyed . | . . . . . . . Combat | -11 -10 -10 -10 -9 -8 -8 -------- Run | Scr Mat Min Exi Min Mat Gar Damage Taken 3947 | . 454 58 . . 3106 329 Core 640 | . 79 . . . 404 157 Absorbed by Shields . | . . . . . . . Core Remaining (%) 84 | 100 . . . 68 . . Volleys Fired 115 | 9 28 5 . . 72 1 Largest 2 | 2 2 2 . . 2 1 Hottest 112 | 40 112 86 . . 79 48 Shots Fired 233 | 18 38 7 . 11 157 2 Gun 164 | 18 . . . 11 135 . Cannon 50 | . 33 4 . . 11 2 Launcher 19 | . 5 3 . . 11 . Special . | . . . . . . . Kinetic 125 | 18 . . . . 105 2 Thermal 50 | . . . . 11 39 . Explosive 19 | . 5 3 . . 11 . Electromagnetic 39 | . 33 4 . . 2 . Robot Hit Streak 22 | 3 11 10 . 14 22 . Robot Miss Streak 6 | 3 2 . . 2 6 1 Penetration Max . | . . . . . . . Secondary Targets 3 | . . . . . 3 . Max Gunslinging Chain 1 | . . . . . 1 . Autonomous 51 | . . . . 11 40 . Shots Hit Robots 156 | 10 23 2 . 8 110 3 Core Hits 82 | 2 12 7 . 8 51 2 Critical Kills 2 | . . . . . 1 1 Critical Parts Destroyed 1 | . . . . . 1 . Critical Strikes 3 | . . . . . 2 1 Destroy 2 | . . . . . 2 . Smash 1 | . . . . . . 1 Melee Attacks 6 | . . . . . . 6 Impact 6 | . . . . . . 6 Slashing . | . . . . . . . Piercing . | . . . . . . . Sneak Attacks . | . . . . . . . Combat Hostiles . | . . . . . . . Follow-up Attacks . | . . . . . . . Damage Inflicted 4502 | 78 769 279 . 265 3003 108 Guns 2331 | 78 . . . 264 1989 . Cannons 825 | . 590 23 . . 212 . Explosions 1209 | . 164 256 . . 789 . Melee 108 | . . . . . . 108 Ramming 29 | . 15 . . 1 13 . Kinetic 1229 | 78 . . . . 1151 . Thermal 1386 | . 24 . . 264 1098 . Explosive 1092 | . 140 256 . . 696 . Electromagnetic 658 | . 590 23 . . 45 . Impact 108 | . . . . . . 108 Slashing . | . . . . . . . Piercing . | . . . . . . . Highest Corruption 15 | . . . . . 7 15 Average Corruption 6 | . . . . . 5 9 Corruption Purged . | . . . . . . . Corruption Blocked . | . . . . . . . Effects 9 | . . . . . 5 4 Message Errors 3 | . . . . . 2 1 Heat Flow Errors 1 | . . . . . . 1 Energy Discharges 1 | . . . . . . 1 Parts Rejected 2 | . . . . . 2 . Misfires 1 | . . . . . . 1 Weapon Failures 1 | . . . . . 1 . Overload Shots . | . . . . . . . Overflow Damage 32 | . . . . . 32 . Projectiles . | . . . . . . . Explosions 32 | . . . . . 32 . Melee . | . . . . . . . Knockbacks 5 | . . . . . 5 . Impact . | . . . . . . . Kinetic 5 | . . . . . 5 . Secondary . | . . . . . . . Self-Inflicted Damage 45 | . . . . . 45 . Shots 2 | . . . . . 2 . Rammed 10 | . 6 . . 1 3 . Targets Rammed 13 | . 6 . . 1 6 . Kicked . | . . . . . . . Crushed 3 | . . . . . 3 . Highest Temperature 191 | . 83 110 . . 62 191 Average Temperature 28 | . 28 64 . . 14 100 Received Heat Transfer 1269 | . 195 30 . . 1044 . Siege Activations . | . . . . . . . Robots Corrupted 1 | . 1 . . . . . Combat Hostiles 1 | . 1 . . . . . Parts Fried 7 | . 7 . . . . . Impact Corruptions . | . . . . . . . Robots Melted . | . . . . . . . Combat Hostiles . | . . . . . . . Parts Melted 1 | . . . . . 1 . Heat Transferred 1778 | . 50 . . 333 1395 . Parts Sabotaged . | . . . . . . . Parts Stolen . | . . . . . . . Parts Stripped . | . . . . . . . Power Chain Reactions 1 | . 1 . . . . . Missiles Intercepted . | . . . . . . . Alert | -11 -10 -10 -10 -9 -8 -8 ------- Run | Scr Mat Min Exi Min Mat Gar Peak Influence 499 | . 161 187 . 68 499 249 Initial 238 | . . 16 . . 26 238 Average 128 | . 56 132 . 57 209 237 Maximum Alert Level 2 | . . . . . 2 1 Low Security (%) 78 | 100 100 100 . 100 50 . Level 1 19 | . . . . . 43 100 Level 2 2 | . . . . . 5 . Level 3 . | . . . . . . . Level 4 . | . . . . . . . Level 5 . | . . . . . . . High Security . | . . . . . . . Max Security . | . . . . . . . Squads Dispatched 10 | . 1 . . . 9 . Investigation 2 | . . . . . 2 . Extermination . | . . . . . . . Reinforcement 4 | . 1 . . . 3 . Assault . | . . . . . . . Garrison 4 | . . . . . 4 . Intercept . | . . . . . . . Searches Triggered . | . . . . . . . Construction Impeded 1 | . . . . . 1 . Haulers Reinforced . | . . . . . . . Active Scanning Responses . | . . . . . . . Cargo Convoy Interrupts . | . . . . . . . Stealth | -11 -10 -10 -10 -9 -8 -8 --------- Run | Scr Mat Min Exi Min Mat Gar Distress Signals 6 | . 1 . . . 5 . Communications Jammed . | . . . . . . . Distress Signals . | . . . . . . . Times Spotted 75 | . 11 5 . 9 47 3 Peak Tracking Total 7 | . 3 3 . 5 7 3 Tactical Retreats 1 | . . . . 1 . . Traps | -11 -10 -10 -10 -9 -8 -8 ------- Run | Scr Mat Min Exi Min Mat Gar Traps Triggered 5 | . . . . . 5 . Indirectly . | . . . . . . . Trap Hack Attempts . | . . . . . . . Triggered . | . . . . . . . Disarmed . | . . . . . . . Reprogrammed . | . . . . . . . Reused . | . . . . . . . Traps Extracted . | . . . . . . . Installed . | . . . . . . . Triggered . | . . . . . . . Exploded 1 | . . . 1 . . . Machines | -11 -10 -10 -10 -9 -8 -8 ---------- Run | Scr Mat Min Exi Min Mat Gar Machines Disabled 7 | . 2 . . . 5 . Max in Single Turn 1 | . 1 . . . 1 . Machines Sabotaged . | . . . . . . . Garrisons Compromised . | . . . . . . . Overloaded Fab Kills . | . . . . . . . Hacking | -11 -10 -10 -10 -9 -8 -8 --------- Run | Scr Mat Min Exi Min Mat Gar Machines Accessed 12 | . 4 1 1 . 6 . Terminals 9 | . 4 1 . . 4 . Fabricators . | . . . . . . . Repair Stations . | . . . . . . . Recycling Units 1 | . . . . . 1 . Scanalyzers . | . . . . . . . Garrison Access 1 | . . . . . 1 . Total Hacks 39 | . 9 5 4 . 21 . Successful 17 | . 3 3 4 . 7 . Failed 21 | . 6 2 . . 13 . Catastrophic 2 | . 1 . . . 1 . Database Lockouts 1 | . . . . . 1 . Manual 25 | . 6 . 1 . 18 . Terminals 31 | . 9 5 . . 17 . Fabricators . | . . . . . . . Repair Stations . | . . . . . . . Recycling Units 3 | . . . . . 3 . Scanalyzers . | . . . . . . . Garrison Access 1 | . . . . . 1 . Terminal Hacks 12 | . 2 3 4 . 3 . Record 6 | . . 2 4 . . . Part Schematic 1 | . . . . . 1 . Unreport Threat 1 | . . . . . 1 . Dispatch Records 1 | . . 1 . . . . Recall Reinforcements 1 | . 1 . . . . . Zone Layout 2 | . 1 . . . 1 . Fabricator Hacks . | . . . . . . . Repair Station Hacks . | . . . . . . . Recycling Unit Hacks 1 | . . . . . 1 . Retrieve Components 1 | . . . . . 1 . Scanalyzer . | . . . . . . . Garrison Access Hacks 1 | . . . . . 1 . Unlock Access 1 | . . . . . 1 . Unauthorized Hacks 3 | . 1 . . . 2 . Terminals 3 | . 1 . . . 2 . Assimilate 1 | . 1 . . . . . Botnet 2 | . . . . . 2 . Fabricators . | . . . . . . . Repair Stations . | . . . . . . . Recycling Units . | . . . . . . . Scanalyzers . | . . . . . . . Garrison Access . | . . . . . . . Data Cores Recovered . | . . . . . . . Used . | . . . . . . . Hacking Detections 9 | . 4 1 . . 4 . Full Trace Events 3 | . 1 . . . 2 . Feedback Events . | . . . . . . . Feedback Blocked . | . . . . . . . Robot Schematics Acquired . | . . . . . . . Robots Built . | . . . . . . . Authchips . | . . . . . . . Time . | . . . . . . . Total Robot Build Rating . | . . . . . . . Part Schematics Acquired 1 | . . . . . 1 . Parts Built . | . . . . . . . Authchips . | . . . . . . . Time . | . . . . . . . Total Part Build Rating . | . . . . . . . Parts Repaired . | . . . . . . . Time . | . . . . . . . Parts Recycled . | . . . . . . . Recycled Matter . | . . . . . . . Retrieved Matter . | . . . . . . . Retrieved Components 9 | . . . . . 9 . Parts Scanalyzed . | . . . . . . . Part Schematics Acquired . | . . . . . . . Parts Damaged . | . . . . . . . Bothacking | -11 -10 -10 -10 -9 -8 -8 ------------ Run | Scr Mat Min Exi Min Mat Gar Used RIF Installer . | . . . . . . . Robots Hacked . | . . . . . . . Non-combat . | . . . . . . . Combat . | . . . . . . . Robot Hacks Applied . | . . . . . . . Relay Couplers Released . | . . . . . . . Fabnet Peak Effective % . | . . . . . . . Robots Rewired . | . . . . . . . Allies Hacked . | . . . . . . . Hacks Repelled . | . . . . . . . Allies | -11 -10 -10 -10 -9 -8 -8 -------- Run | Scr Mat Min Exi Min Mat Gar Total Allies 1 | . 1 . . . . . Largest Group 1 | . 1 1 1 1 1 . Highest-Rated Group 10 | . 10 10 10 10 9 . Highest-Rated Ally 10 | . 10 10 10 10 9 . Total Orders 1 | . . . . . 1 . STAY 1 | . . . . . 1 . Ally Attacks . | . . . . . . . Total Damage . | . . . . . . . Kills . | . . . . . . . Allies Corrupted . | . . . . . . . Allies Melted . | . . . . . . . Intel | -11 -10 -10 -10 -9 -8 -8 ------- Run | Scr Mat Min Exi Min Mat Gar Robot Analysis Total . | . . . . . . . Derelict Logs Recovered 2 | . . 1 . 1 . . Drone Launches . | . . . . . . . Drone Recoveries . | . . . . . . . Exploration | -11 -10 -10 -10 -9 -8 -8 ------------- Run | Scr Mat Min Exi Min Mat Gar Turns Passed 3808 | 120 930 464 651 367 1184 92 Spaces Moved 1818 | 54 415 195 427 245 454 28 Core 4 | 4 . . . . . . Treads 753 | 50 310 162 . . 203 28 Legs . | . . . . . . . Wheels 1061 | . 105 33 427 245 251 . Hover . | . . . . . . . Flight . | . . . . . . . Fastest Speed 50 | 50 100 145 130 145 145 240 Average Speed 175 | 151 189 223 144 145 185 240 Slowest Speed 320 | 160 240 240 145 145 320 240 Overloaded Moves . | . . . . . . . Propulsion Burnouts . | . . . . . . . Robots Hopped . | . . . . . . . Cave-ins Triggered . | . . . . . . . Exploration Rate (%) 44 | 4 63 50 89 55 45 7 Regions Visited 6 Branch Regions 3 Pre-discovered Areas 1 | . . . 1 . . . Known Exits Taken 1 | . . . . . 1 . Unknown Exits Taken 5 | 1 1 1 1 1 . . Scrap Searched 3 | . . 2 . 1 . . Spaces Dug . | . . . . . . . Terrain Destroyed 180 | . 46 16 . 1 116 1 Melee . | . . . . . . . Projectile 7 | . . . . 1 5 1 AOE 173 | . 46 16 . . 111 . Terrain Rammed . | . . . . . . . Walls Destroyed . | . . . . . . . Machines Disabled . | . . . . . . . Actions | -11 -10 -10 -10 -9 -8 -8 --------- Run | Scr Mat Min Exi Min Mat Gar Total 2237 | 75 513 215 463 256 675 40 Wait 164 | 6 34 7 21 9 87 . Move 1813 | 53 414 194 426 244 454 28 Hop . | . . . . . . . Pick Up 39 | 2 15 3 1 2 16 . Fast Attach 18 | 5 3 . 4 . 4 2 Attach 24 | . 1 . 1 . 19 3 Detach 3 | . . . 2 . 1 . Swap 19 | . 11 3 . . 5 . Drop 23 | . 1 3 8 . 11 . Fire 115 | 9 28 5 . . 72 1 Melee 6 | . . . . . . 6 Ram 1 | . . . . 1 . . Kick . | . . . . . . . Crush 12 | . 6 . . . 6 . Escape Stasis . | . . . . . . . Rewire . | . . . . . . . Trap . | . . . . . . . Miscellaneous . | . . . . . . . Route ------- -11/Scrapyard -10/Materials (discovered 3 exits: [*Mat] / *Min x2) -10/Mines (discovered 2 exits: [*Mat] / *Exi) -10/Exiles (discovered 2 exits: [*Min x2]) -9/Mines -8/Materials -8/Garrison History --------- Turn | Location | Event 13 | -11/Scrapyard | Discovered new exit (range 15) 121 | -11/Scrapyard | Entered Materials 303 | -10/Materials | Build established: Mutant 539 | -10/Materials | Discovered new exit (range 8) 732 | -10/Materials | Discovered new exit (range 13) 909 | -10/Materials | Discovered new exit (range 14) 1051 | -10/Materials | Entered Mines 1051 | -10/Mines | Accompanied by 1 ally 1129 | -10/Mines | Build established: Scavenger-Mutant 1391 | -10/Mines | Discovered new exit (range 11) 1421 | -10/Mines | A weapon hastily lodged in a ceiling crevice suddenly fell to the ground 1459 | -10/Mines | Found a damaged Exp. Sensor Array with a note attached 1464 | -10/Mines | Found Prototype Device 1509 | -10/Mines | Deemed a non-threat by the Exiles lab entrance 1509 | -10/Mines | Discovered new exit (range 5) 1515 | -10/Mines | Entered Exiles 1515 | -10/Exiles | Accompanied by 1 ally 1534 | -10/Exiles | Discovered new exit (range 15) 1555 | -10/Exiles | Met 8R-AWN 1572 | -10/Exiles | Met EX-HEX 1665 | -10/Exiles | Met EX-DEC 1690 | -10/Exiles | Visited The Gauntlet 1754 | -10/Exiles | Build established: Mutant 1843 | -10/Exiles | Learned location of Zion (-7) 1868 | -10/Exiles | Met EX-BIN 1888 | -10/Exiles | Aligned with FarCom system 1890 | -10/Exiles | Given EX-Vault access code 1923 | -10/Exiles | Opened EX-Vault 1933 | -10/Exiles | Found Prototype Energy Cannon 1936 | -10/Exiles | Identified Firepult 1938 | -10/Exiles | Found Prototype Energy Gun 1938 | -10/Exiles | Identified AWS/Thermal 1946 | -10/Exiles | Found Prototype Device 1946 | -10/Exiles | Identified Chronowheel 1946 | -10/Exiles | Activated Chronowheel 1990 | -10/Exiles | Warned to stay clear of 0b10 Research branches 1994 | -10/Exiles | Exiles lab attacked by MAIN.C 2154 | -10/Exiles | Discovered new exit (range 10) 2166 | -10/Exiles | Left Exiles lab with AWS/Thermal 2166 | -10/Exiles | Entered Mines 2166 | -9/Mines | Accompanied by 1 ally 2168 | -9/Mines | Met a Derelict bent on vengeance 2263 | -9/Mines | Learned 2 Materials zone layouts 2331 | -9/Mines | Discovered new exit (range 12) 2392 | -9/Mines | Found a hidden stash of uninstalled traps 2395 | -9/Mines | Received a Rocket Launcher from a helpful Derelict 2454 | -9/Mines | Build established: Skirmisher 2463 | -9/Mines | Assembled infested the area 2468 | -9/Mines | Assisted by a Guerilla fighting off Assembled 2533 | -9/Mines | Entered Materials 2533 | -8/Materials | Accompanied by 1 ally 2533 | -8/Materials | Evolved 4 slots: Utility x4 2672 | -8/Materials | Identified Exp. Sensor Array 2748 | -8/Materials | Central database locked down 3325 | -8/Materials | Garrison activated, responded to threat 3395 | -8/Materials | Lost 5 parts (2n2u1w) 3465 | -8/Materials | Garrison activated, responded to threat 3482 | -8/Materials | Lost 3 parts (1p1u1w) 3592 | -8/Materials | Core integrity fell below 50% 3599 | -8/Materials | Lost 10 parts (1p2n3u4w) 3717 | -8/Materials | Identified exit to Garrison 3717 | -8/Materials | Entered Garrison 3784 | -8/Garrison | Build established: Mutant 3786 | -8/Garrison | System corruption reached 10% 3792 | -8/Garrison | Core integrity fell below 20% 3809 | -8/Garrison | Destroyed by C-17 Slicer with Blade Saw Last Messages --------------- GOAL=ESCAPE 03717_ Receiving FarCom transmissions... 03743_ System corrupted: FCS attempts to trigger Slug Cannon. 03743_ System corrupted: Slug Cannon misfires. 03767_ System corrupted: Heat flow error (+222). 03785_ CLB/JIF,TLKISNZZ/SBX EMPPXZ|XZ> 03785_ Imp. Treads destroyed. 03785_ System corrupted by crushing effect (+3). 03785_ Lgt. Treads destroyed. 03785_ System corrupted by crushing effect (+5). 03786_ Slug Cannon destroyed. 03787_ Maul severed. 03788_ Acquired Maul. 03792_ C-17 Slicer suffers critical hit (Smash). 03792_ C-17 Slicer destroyed. 03796_ Acquired 22 matter. 03803_ Maul severed. 03805_ System corrupted: Energy discharge (-26). 03806_ Acquired Maul. 03806_ Lgt. Treads severed. Map ----- +----------------------------------------------------+ | ?????????????????????????????????????????????????? | | ?????????????????????????????????????????????????? | | ?????????????????????????????????????????????????? | | ?????????????????????????????????????????????????? | | ?????????????????????????????????????????????????? | | ?????????????????????????????????????????????????? | | ?????????????????????????????????????????????????? | | ?????????????????????????????????????????????????? | | ?????????????????????????????????????????????????? | | ???????????????????????????????#####?????????????? | | ???????????????????????????????# #?????????????? | | ???????????????????????######### #?????????????? | | ???????????????????????# #?????????????? | | ???????????????????????# #?????????????? | | ???????????????????????# ##########?????????????? | | ???????????????????????# #??????????????????????? | | ???????????????????????# #??????????????????????? | | ???????????????????????# #??????????????????????? | | ???????????????????????# #??????????????????????? | | ???????????????????????# #??????????????????????? | | ???????????????????????# #??????????????????????? | | ???????????????????????# #??????????????????????? | | ???????????????????????# #??????????????????????? | | ???????????????????????#= #??????????????????????? | | ?????????????????#######%=#??????????????????????? | | ????????????# */@#??????????????????????? | | ????????????# c #??????????g???????????? | | ????????????# ######### #??????????g???????????? | | ???????????????????????# #??????????g???????????? | | ???????????????????????# #??????????????????????? | | ???????????????????????#^ ??????????????????????? | | ???????????????????????; #??????????????????????? | | ?????????bb????????????# #??????????????????????? | | ???????????????????????#^ #??????????????????????? | | ???????????????????????# #??????????????????????? | | ??????????????????????? #??????????????????????? | | ??????????????????????? ???????????????????????? | | ???????????????????????###???????????????????????? | | ?????????????????????????????????????????????????? | | ?????????????????????????????????????????????????? | | ?????????????????g???????????????????????????????? | | ?????????????????g???????????????????????????????? | | ?????????????????????????????????????????????????? | | ?????????????????????????????????????????????????? | | ?????????????????????????????????????????????????? | | ?????????????????????????????????????????????????? | | ?????????????????????????????????????????????????? | | ?????????????????????????????????????????????????? | | ?????????????????????????????????????????????????? | | ?????????????????????????????????????????????????? | +----------------------------------------------------+ Best States ------------- Heat Dissipation 31 Energy Generation 14 Energy Capacity 275 Matter Stores 300 Matter Capacity 300 Sight Range 16 Robot Scan Range 20 Terrain Scan Density 10 Armor Coverage 450 Evasion (%) 40 Recoil Reduction 2 Item Schematics ----------------- Hacking Suite | -8/Materials | Hacked Robot Schematics ------------------ None Fabricated ------------ Nothing Alien Tech Used ----------------- None Achievements -------------- None Challenges ------------ None Game ------ Seed ArchitectDerelictInterpreter Manual? 0 Play Time 00:35:11 Cumulative 133.1 hours Start 2022.09.23 @ 21:38:53 End 2022.09.23 @ 22:32:38 Sessions 1 Manual Loads 0 Difficulty Rogue Special Mode None Game No. 110 Rogue 107 Adventurer 3 Explorer 0 Win Type - Total 1 Types 1/0/0/0/0/0/0/0/0 Lore% 54 Gallery% 53 Achievement% 48 Wizard Run 0 Options --------- ASCII 0 Keyboard 0 Movement Numpad Keybinds 0 Fullscreen 1 Font 18/SmallcapsGlow Map View 76x50 Tactical HUD 1 Map Filters NONE Filters NONE Steam 1 RUN: de4ea0ff-16d6-4ca2-91d1-f27784ea9e5a